bitfinex-derivatives/quotes_SOLF0:USTF0_20241218
["timestamp","ask_amount","ask_price","bid_price","bid_amount"]
[1734550985317,23.28345015,216.01,215.85,3.5313]
[1734550985715,23.28345015,216.01,215.85,23.35475015]
[1734550986221,2.3161,215.97,215.91,2.3167]
[1734550986416,23.28345015,216.01,215.91,2.3167]
[1734550986618,2.3162,215.97,215.9,2.3169]
[1734550986819,23.28345015,216.01,215.85,23.35475015]
[1734550987219,2.3164,215.95,215.9,2.3168]
[1734550987416,23.28345015,216.01,215.86,3.46]
[1734550988326,3.46,216.01,215.86,3.46]
[1734550988520,2.3158,216.01,215.96,2.3162]
[1734550988716,1.7701,216.04,215.93,3.46]
[1734550988916,2.3155,216.03,216.0,2.3158]
[1734550989223,1.7701,216.04,215.93,3.46]
[1734550990021,5.51950145,216.09,215.93,23.28345015]
[1734550990425,5.51950145,216.09,215.9,1.7127]
[1734550990725,19.82345015,216.06,215.9,1.7127]
[1734550991226,2.3157,216.01,215.97,2.3161]
[1734550991625,19.82345015,216.06,215.9,1.7127]
[1734550992424,2.3156,216.03,215.9,1.7127]
[1734550992621,5.51950145,216.09,215.9,1.7127]
[1734550992922,5.51950145,216.09,216.02,2.3156]
[1734550993128,5.51950145,216.09,215.98,3.46]
[1734550993928,2.3156,216.03,215.98,5.776]
[1734550994128,5.51950145,216.09,215.98,3.46]
[1734550994324,19.82345015,216.06,215.92,3.46]
[1734550994632,2.3161,215.98,215.94,2.3164]
[1734550994930,23.28345015,216.06,215.9,3.46]
[1734550995122,2.3161,215.98,215.9,3.46]
[1734550995321,23.28345015,216.06,215.9,3.46]
[1734550995521,19.82345015,216.06,215.9,3.46]
[1734550995723,2.3158,216.01,215.94,2.3164]
[1734550995926,2.3158,216.01,215.9,3.46]
[1734550996231,2.3156,216.02,215.98,2.316]
[1734550996626,3.46,216.08,215.9,3.46]
[1734550996933,3.46,216.08,216.0,2.3158]
[1734550996934,2.3154,216.04,216.0,2.3158]
[1734550997137,3.46,216.08,215.9,3.46]
[1734550997727,5.51950145,216.09,215.9,3.46]
[1734550997934,1.72,216.12,215.97,19.82345015]
[1734550998130,1.72,216.12,215.93,19.82345015]
[1734550998131,1.0213,216.15,216.01,19.82345015]
[1734550998533,1.0213,216.15,216.1,2.3146]
[1734550998534,2.3143,216.14,216.1,2.3146]
[1734550998734,2.3143,216.14,216.05,3.46]
[1734550999132,2.3144,216.13,216.09,2.3148]
[1734550999434,2.3144,216.13,216.05,3.46]
[1734550999630,2.3146,216.11,216.01,19.82345015]
[1734550999827,24.28475015,216.15,215.98,5.4247]
[1734551000134,24.28475015,216.15,215.98,3.634]
[1734551000329,2.3154,216.05,216.0,2.3158]
[1734551000535,24.28475015,216.15,216.0,2.3158]
[1734551001033,24.28475015,216.15,215.99,2.3158]
[1734551001034,2.3154,216.04,215.99,2.3158]
[1734551001534,2.3154,216.04,215.98,3.634]
[1734551001535,19.82345015,216.07,215.75,6.29251764]
[1734551001738,19.82345015,216.03,215.86,6.8743]
[1734551001940,2.316,215.99,215.94,2.3164]
[1734551002138,19.82345015,216.03,215.86,6.8743]
[1734551002436,2.3163,215.95,215.91,2.3168]
[1734551002630,19.82345015,216.03,215.86,6.8743]
[1734551004829,19.82345015,216.03,215.93,2.3165]
[1734551005035,5.51744744,216.06,215.86,6.8743]
[1734551005439,2.3157,216.02,215.89,19.82345015]
[1734551005732,5.51744744,216.06,215.89,19.82345015]
[1734551005937,5.51744744,216.06,215.86,3.4343]
[1734551006127,19.82345015,216.03,215.86,3.4343]
[1734551006729,19.82345015,215.99,215.86,3.4343]
[1734551006935,2.317,215.9,215.86,3.4343]
[1734551007646,19.82345015,215.95,215.86,1.7035]
[1734551007836,19.82345015,215.95,215.8,1.7083]
[1734551008139,2.3175,215.85,215.8,1.7083]
[1734551008340,19.82345015,215.95,215.8,1.7083]
[1734551008842,2.3174,215.85,215.8,1.7083]
[1734551009142,19.82345015,215.95,215.8,1.7083]
[1734551009343,2.3173,215.86,215.8,1.7083]
[1734551009538,19.82345015,215.95,215.8,1.7083]
[1734551009841,2.3173,215.86,215.8,1.7083]
[1734551010034,19.82345015,215.95,215.8,1.7083]
[1734551010241,19.82345015,215.91,215.76,1.6041]
[1734551010434,3.44,215.9,215.76,7.12517283]
[1734551010841,3.44,215.9,215.77,19.82345015]
[1734551011341,5.67020078,215.94,215.77,19.82345015]
[1734551011544,2.3171,215.88,215.77,19.82345015]
[1734551012141,2.3171,215.88,215.83,2.3176]
[1734551012336,5.67020078,215.94,215.83,2.3176]
[1734551012540,5.67020078,215.94,215.79,2.318]
[1734551012741,5.67020078,215.94,215.76,7.12517283]
[1734551013036,2.317,215.89,215.76,7.12517283]
[1734551013242,5.67020078,215.94,215.76,7.12517283]
[1734551013641,2.3175,215.84,215.8,2.3179]
[1734551013842,19.82345015,215.91,215.76,7.12517283]
[1734551014844,2.3175,215.85,215.8,2.3179]
[1734551015044,19.82345015,215.91,215.76,7.12517283]
[1734551015346,2.3183,215.77,215.67,19.82345015]
[1734551015550,3.46,215.83,215.67,19.82345015]
[1734551015951,3.46,215.83,215.71,5.4662876]
[1734551016148,2.3185,215.75,215.71,2.3189]
[1734551016451,23.28345015,215.83,215.65,5.1177]
[1734551017046,2.3187,215.73,215.69,2.3191]
[1734551017247,23.28345015,215.83,215.69,2.3191]
[1734551017751,1.6217,215.86,215.68,5.62431139]
[1734551017953,1.6217,215.86,215.71,19.82345015]
[1734551018252,19.82345015,215.8,215.68,5.62431139]
[1734551018652,2.3186,215.74,215.7,3.9687]
[1734551018850,2.3186,215.74,215.7,1.6497]
[1734551019448,23.28345015,215.8,215.7,1.6497]
[1734551020557,2.3187,215.74,215.7,1.6497]
[1734551020746,23.28345015,215.8,215.65,3.9772]
[1734551020950,19.82345015,215.76,215.63,1.6899]
[1734551021549,19.82345015,215.72,215.63,1.6899]
[1734551021850,19.82345015,215.72,215.6,2.3201]
[1734551022053,2.3196,215.65,215.6,2.3201]
[1734551022255,1.7453,215.71,215.59,5.47201491]
[1734551023748,2.319,215.71,215.59,5.47201491]
[1734551023949,19.82345015,215.76,215.59,5.47201491]
[1734551024154,1.7017,215.79,215.62,19.82345015]
[1734551024349,2.3184,215.76,215.63,3.46]
[1734551024751,2.3184,215.76,215.72,2.3188]
[1734551025745,19.82345015,215.8,215.64,3.2534]
[1734551025951,1.7017,215.83,215.66,19.82345015]
[1734551026349,19.82345015,215.84,215.77,2.3183]
[1734551026553,23.28345015,215.88,215.72,3.46]
[1734551026953,2.3176,215.83,215.78,2.3181]
[1734551027159,23.28345015,215.88,215.72,3.46]
[1734551027856,19.82345015,215.84,215.67,1.6876]
[1734551028158,2.3181,215.79,215.71,2.3189]
[1734551028353,19.82345015,215.84,215.71,5.53271469]
[1734551029258,2.3179,215.81,215.74,2.3185]
[1734551029459,19.82345015,215.84,215.71,5.53271469]
[1734551029760,2.3177,215.82,215.77,2.3182]
[1734551029954,23.28345015,215.88,215.71,5.53271469]
[1734551030557,19.82345015,215.88,215.71,5.53271469]
[1734551030856,2.3179,215.81,215.71,5.53271469]
[1734551031160,19.82345015,215.88,215.71,5.53271469]
[1734551031354,2.3179,215.81,215.76,2.3184]
[1734551031659,19.82345015,215.88,215.71,5.53271469]
[1734551032154,19.82345015,215.84,215.71,5.53271469]
[1734551032550,2.3177,215.83,215.71,5.53271469]
[1734551032954,19.82345015,215.88,215.71,5.53271469]
[1734551033657,19.82345015,215.84,215.71,5.53271469]
[1734551033853,19.82345015,215.84,215.67,1.6876]
[1734551034063,19.82345015,215.8,215.67,1.6876]
[1734551034259,1.677,215.79,215.67,1.6876]
[1734551034461,2.3184,215.76,215.71,2.3188]
[1734551034659,1.677,215.79,215.69,5.4896661]
[1734551035159,2.3183,215.77,215.73,2.3186]
[1734551035362,1.677,215.79,215.69,5.4896661]
[1734551035657,3.9952,215.79,215.75,2.3184]
[1734551035860,28.88810786,215.89,215.69,5.4896661]
[1734551036055,1.6707,215.88,215.69,5.4896661]
[1734551036259,2.3178,215.82,215.69,5.4896661]
[1734551036455,1.6707,215.88,215.69,5.4896661]
[1734551037362,2.3175,215.84,215.8,2.3179]
[1734551037955,2.3176,215.83,215.79,2.3181]
[1734551038563,1.6707,215.88,215.79,2.3181]
[1734551038755,2.3177,215.82,215.79,2.3181]
[1734551039366,2.3176,215.84,215.79,2.3181]
[1734551039566,1.6707,215.88,215.79,2.3181]
[1734551039963,2.3176,215.84,215.8,2.3179]
[1734551042167,2.3177,215.83,215.8,2.3179]
[1734551042669,1.6707,215.88,215.74,3.44]
[1734551042869,1.7668,215.92,215.76,19.82345015]
[1734551043068,1.7668,215.92,215.77,1.7092]
[1734551043263,19.82345015,215.95,215.77,1.7092]
[1734551043466,3.44,215.97,215.8,19.82345015]
[1734551043663,1.7361,215.98,215.84,19.82345015]
[1734551043866,1.7361,215.98,215.85,1.6005]
[1734551044066,1.7361,215.98,215.88,2.317]
[1734551044268,1.7361,215.98,215.85,1.6005]
[1734551045167,1.7361,215.98,215.87,2.3171]
[1734551045369,1.7361,215.98,215.85,1.6005]
[1734551045572,1.7361,215.98,215.92,2.3166]
[1734551046465,2.3162,215.97,215.85,1.6005]
[1734551046672,1.7361,215.98,215.9,2.3168]
[1734551046975,2.3163,215.96,215.9,2.3168]
[1734551047169,1.7361,215.98,215.9,2.3168]
[1734551047369,1.7361,215.98,215.86,5.60305957]
[1734551047572,2.3165,215.94,215.86,5.60305957]
[1734551047773,1.7361,215.98,215.9,2.3169]
[1734551047967,1.7361,215.98,215.86,5.60305957]
[1734551048174,1.7361,215.98,215.87,1.7616]
[1734551048370,1.7361,215.98,215.88,3.44]
[1734551048969,1.7361,215.98,215.9,2.3169]
[1734551049173,1.7361,215.98,215.88,3.44]
[1734551049571,2.3166,215.94,215.89,2.3169]
[1734551049873,1.7361,215.98,215.88,3.44]
[1734551050068,2.3164,215.95,215.91,2.3168]
[1734551050266,1.7361,215.98,215.88,3.44]
[1734551050671,2.3162,215.97,215.92,2.3166]
[1734551051367,1.28212,215.99,215.88,23.26345015]
[1734551051571,1.28212,215.99,215.92,19.82345015]
[1734551051767,1.6169,216.11,215.96,19.82345015]
[1734551051964,1.6169,216.11,215.97,3.44]
[1734551052364,1.6169,216.11,216.0,2.3158]
[1734551052868,2.3152,216.06,216.01,2.3157]
[1734551053265,2.3152,216.06,215.97,3.44]
[1734551053470,1.6169,216.11,215.97,3.44]
[1734551053672,1.6169,216.11,215.98,1.602]
[1734551055873,2.3148,216.1,215.98,1.602]
[1734551056073,1.6169,216.11,215.98,1.602]
[1734551056376,1.6169,216.11,216.05,2.3152]
[1734551056377,2.3148,216.09,216.05,2.3152]
[1734551058581,2.315,216.08,216.03,2.3154]
[1734551058878,1.6169,216.11,216.0,5.43100753]
[1734551059381,1.6169,216.11,216.03,2.3155]
[1734551059382,2.315,216.08,216.03,2.3155]
[1734551059578,1.6169,216.11,216.0,5.43100753]
[1734551060372,1.6169,216.11,216.03,2.3154]
[1734551060677,1.6169,216.11,216.0,5.43100753]
[1734551061071,1.6169,216.11,216.02,2.3156]
[1734551061675,2.3151,216.07,216.03,2.3155]
[1734551062070,1.6169,216.11,215.99,1.7186]
[1734551062270,3.44,216.1,215.94,1.7416]
[1734551062573,19.82345015,216.08,215.94,1.7416]
[1734551062776,19.82345015,216.04,215.87,3.44]
[1734551063174,2.3161,215.98,215.94,2.3164]
[1734551063377,19.82345015,216.04,215.87,3.44]
[1734551063879,19.82345015,216.04,215.93,2.3165]
[1734551065175,23.26345015,216.04,215.93,2.3165]
[1734551065379,2.3161,215.97,215.93,2.3165]
[1734551065580,23.26345015,216.04,215.93,2.3165]
[1734551066472,2.3157,216.01,215.93,2.3165]
[1734551066670,23.26345015,216.04,215.93,2.3165]
[1734551066878,19.82345015,216.04,215.91,5.4790654]
[1734551067275,3.44,216.06,215.91,5.4790654]
[1734551067773,2.3157,216.02,215.91,5.4790654]
[1734551067981,3.44,216.06,215.92,12.46073501]
[1734551067982,15.90073501,216.06,215.92,12.46073501]
[1734551068277,15.90073501,216.06,215.97,2.3161]
[1734551068482,15.90073501,216.06,215.91,5.4790654]
[1734551068483,12.46073501,216.03,215.91,5.4790654]
[1734551068676,12.46073501,216.03,215.93,2.3166]
[1734551068979,2.3161,215.98,215.93,2.3166]
[1734551069176,12.46073501,216.03,215.93,2.3166]
[1734551069376,1.605,216.02,215.96,2.3162]
[1734551069575,2.3159,216.0,215.91,5.4790654]
[1734551069977,1.605,216.02,215.95,2.3163]
[1734551070177,2.316,215.98,215.95,2.3163]
[1734551070575,2.3162,215.96,215.93,2.3165]
[1734551070880,1.605,216.02,215.89,5.86562858]
[1734551070881,12.46073501,216.0,215.89,5.86562858]
[1734551071077,12.46073501,216.0,215.89,0.32397]
[1734551071279,2.3166,215.93,215.89,0.32397]
[1734551071480,12.46073501,216.0,215.89,0.32397]
[1734551072381,2.3166,215.93,215.89,2.64097]
[1734551072678,12.46073501,216.0,215.89,0.32397]
[1734551073583,2.3168,215.91,215.89,0.32397]
[1734551073775,12.46073501,215.97,215.89,0.32397]
[1734551073983,12.46073501,215.94,215.89,0.32397]
[1734551074174,2.3169,215.9,215.89,0.32397]
[1734551075880,12.46073501,215.91,215.77,14.10683501]
[1734551076082,12.46073501,215.85,215.72,15.90073501]
[1734551076277,12.46073501,215.85,215.72,19.27233501]
[1734551077586,2.3179,215.81,215.76,2.3183]
[1734551077782,2.3179,215.81,215.74,5.56747568]
[1734551078287,19.97442337,215.88,215.74,5.56747568]
[1734551078886,19.97442337,215.88,215.77,2.3182]
[1734551079887,2.3178,215.82,215.77,2.3182]
[1734551080188,2.3179,215.81,215.76,2.3183]
[1734551081090,2.3179,215.81,215.77,2.3183]
[1734551081588,19.97442337,215.88,215.73,3.44]
[1734551081788,3.44,215.87,215.73,3.44]
[1734551082387,2.3181,215.79,215.73,5.60754553]
[1734551083091,2.318,215.8,215.75,2.3184]
[1734551083594,3.44,215.87,215.75,2.3184]
[1734551083799,2.3181,215.79,215.75,2.3184]
[1734551084299,2.3179,215.81,215.74,2.3186]
[1734551084593,1.6212,215.84,215.72,3.3716]
[1734551085192,1.6212,215.84,215.74,2.3186]
[1734551085487,1.6212,215.84,215.72,3.3716]
[1734551085693,2.3182,215.79,215.75,2.3185]
[1734551085893,1.6212,215.84,215.72,3.3716]
[1734551086096,21.59562337,215.84,215.72,3.3716]
[1734551086295,2.3184,215.76,215.72,5.6904]
[1734551086690,21.59562337,215.84,215.72,3.3716]
[1734551086892,21.59562337,215.84,215.69,3.44]
[1734551087294,19.97442337,215.8,215.67,1.7559]
[1734551087494,19.97442337,215.76,215.65,1.7166]
[1734551087689,1.648,215.75,215.65,1.7166]
[1734551087989,1.648,215.75,215.65,4.0362]
[1734551087990,2.3192,215.69,215.65,4.0362]
[1734551088297,1.648,215.75,215.65,4.0362]
[1734551088998,2.3191,215.7,215.65,4.0362]
[1734551089401,1.648,215.75,215.65,4.0362]
[1734551090701,2.3191,215.7,215.65,4.0362]
[1734551090901,1.648,215.75,215.65,4.0362]
[1734551091389,1.648,215.75,215.61,1.7559]
[1734551091390,1.648,215.75,215.64,2.3197]
[1734551091595,1.648,215.75,215.61,1.7559]
[1734551091792,19.97442337,215.72,215.61,1.7559]
[1734551092001,23.39442337,215.72,215.61,1.7559]
[1734551092194,23.39442337,215.72,215.54,5.45641207]
[1734551092501,19.97442337,215.68,215.54,2.3206]
[1734551092903,2.3207,215.55,215.49,1.7513]
[1734551093103,19.97442337,215.64,215.5,2.3211]
[1734551093302,1.6689,215.63,215.49,1.7513]
[1734551093997,19.97442337,215.6,215.49,1.7513]
[1734551094200,19.97442337,215.6,215.49,4.0725]
[1734551094999,19.97442337,215.6,215.49,4.0726]
[1734551095504,1.6689,215.63,215.54,2.3207]
[1734551095803,2.3201,215.61,215.54,2.3207]
[1734551096096,1.6689,215.63,215.49,25.14572337]
[1734551096097,1.6689,215.63,215.55,2.3206]
[1734551096506,2.3202,215.59,215.5,3.42]
[1734551096802,2.3202,215.59,215.53,2.3208]
[1734551097001,2.3201,215.61,215.5,3.42]
[1734551097195,3.42,215.65,215.5,3.42]
[1734551097701,2.3201,215.6,215.5,3.42]
[1734551097897,3.42,215.65,215.5,3.42]
[1734551098102,2.3202,215.6,215.54,2.3207]
[1734551098497,12.51000543,215.63,215.5,3.42]
[1734551098702,2.3201,215.61,215.56,2.3205]
[1734551099906,3.42,215.65,215.5,3.42]
[1734551100704,3.42,215.65,215.52,12.51000543]
[1734551101105,2.3202,215.59,215.5,3.42]
[1734551101299,12.51000543,215.6,215.49,5.1713]
[1734551101503,2.3208,215.54,215.49,4.0726]
[1734551101803,2.3208,215.54,215.31,4.6463]
[1734551101804,12.51000543,215.53,215.31,4.6463]
[1734551102003,12.51000543,215.53,215.27,12.51000543]
[1734551102004,12.51000543,215.53,215.39,1.6467]
[1734551102405,3.42,215.55,215.39,1.6467]
[1734551102605,12.51000543,215.52,215.39,1.6467]
[1734551103109,12.51000543,215.46,215.32,3.4558]
[1734551103308,12.51000543,215.46,215.36,2.3226]
[1734551103509,12.51000543,215.46,215.33,1.7528]
[1734551103705,1.7152,215.45,215.35,5.60328052]
[1734551103906,12.51000543,215.43,215.34,2.3229]
[1734551104203,1.7152,215.45,215.34,5.70640497]
[1734551104412,3.42,215.47,215.35,1.6465]
[1734551104711,1.6854,215.54,215.35,21.69902818]
[1734551104712,21.76772818,215.53,215.35,21.69902818]
[1734551104913,2.3215,215.47,215.42,2.322]
[1734551105111,21.76772818,215.53,215.35,1.6465]
[1734551105409,20.05252818,215.49,215.35,1.6465]
[1734551105609,3.42,215.48,215.35,1.6465]
[1734551105810,3.42,215.48,215.34,5.70640497]
[1734551106111,3.42,215.48,215.35,1.6465]
[1734551106408,2.3219,215.43,215.37,2.3226]
[1734551106616,20.05252818,215.44,215.34,5.70640497]
[1734551106809,4.7009,215.48,215.3,1.7528]
[1734551107016,25.67810588,215.55,215.33,25.68922642]
[1734551107212,25.67810588,215.55,215.37,20.05252818]
[1734551107410,2.3218,215.45,215.39,2.3224]
[1734551107609,23.47252818,215.51,215.34,6.7594]
[1734551109418,23.47252818,215.51,215.34,5.0722]
[1734551109712,2.322,215.43,215.38,2.3224]
[1734551110108,23.47252818,215.51,215.34,1.6522]
[1734551110313,20.05252818,215.47,215.34,1.6522]
[1734551111315,1.653,215.46,215.3,1.7528]
[1734551111614,20.05252818,215.43,215.26,3.42]
[1734551111815,3.42,215.42,215.32,5.6564747]
[1734551112215,3.42,215.42,215.32,7.9795747]
[1734551112614,2.3227,215.36,215.26,5.0234]
[1734551112918,3.42,215.42,215.28,5.47371141]
[1734551114017,3.42,215.42,215.29,2.3234]
[1734551114620,3.42,215.42,215.31,2.3232]
[1734551114815,23.47252818,215.43,215.26,1.6034]
[1734551115015,2.3224,215.39,215.34,2.3229]
[1734551115223,3.42,215.43,215.26,1.6034]
[1734551115416,1.653,215.46,215.29,20.05252818]
[1734551115616,4.64,215.62,215.33,20.05252818]
[1734551115817,4.64,215.62,215.37,20.05252818]
[1734551115818,23.51152818,215.56,215.37,20.05252818]
[1734551116019,23.51152818,215.56,215.38,1.7245]
[1734551116319,29.14727073,215.56,215.38,1.7245]
[1734551117421,29.14727073,215.56,215.46,2.3216]
[1734551117724,29.14727073,215.56,215.41,3.42]
[1734551119016,29.14727073,215.56,215.42,5.58492413]
[1734551119515,20.05252818,215.52,215.42,5.58492413]
[1734551120118,20.05252818,215.52,215.43,2.3219]
[1734551120723,2.3214,215.49,215.44,2.3218]
[1734551120923,20.05252818,215.52,215.44,2.3218]
[1734551121126,20.05252818,215.52,215.38,5.1445]
[1734551121525,20.05252818,215.52,215.39,5.49128468]
[1734551122024,9.09474255,215.56,215.39,5.49128468]
[1734551122025,29.14727073,215.56,215.39,5.49128468]
[1734551122822,20.05252818,215.52,215.39,5.49128468]
[1734551123019,2.3217,215.45,215.41,2.3221]
[1734551123426,2.3219,215.43,215.38,4.047]
[1734551123728,3.42,215.49,215.38,1.7245]
[1734551123929,2.3218,215.45,215.41,2.3221]
[1734551124132,20.05252818,215.48,215.34,1.7622]
[1734551124627,20.05252818,215.48,215.35,5.48733521]
[1734551125027,20.05252818,215.48,215.35,2.3228]
[1734551125429,20.05252818,215.48,215.34,1.7622]
[1734551125629,20.05252818,215.48,215.34,7.34864176]
[1734551126327,20.05252818,215.48,215.39,2.3223]
[1734551126833,2.3219,215.44,215.39,2.3223]
[1734551127031,20.05252818,215.48,215.38,2.3225]
[1734551127232,20.05252818,215.48,215.34,7.34864176]
[1734551127427,2.3224,215.39,215.34,7.34864176]
[1734551127632,21.32872818,215.48,215.34,7.34864176]
[1734551127936,12.53241303,215.44,215.34,1.7622]
[1734551128235,12.53241303,215.44,215.33,5.43756662]
[1734551128533,12.53241303,215.41,215.31,1.6093]
[1734551128729,2.3229,215.34,215.31,1.6093]
[1734551129034,12.53241303,215.41,215.28,3.42]
[1734551129234,2.3229,215.35,215.3,2.3232]
[1734551129739,1.6546,215.43,215.3,18.09067406]
[1734551129934,1.6546,215.43,215.33,12.53241303]
[1734551130132,3.42,215.47,215.34,1.5944]
[1734551130332,2.322,215.43,215.39,2.3223]
[1734551130732,3.42,215.47,215.34,1.5944]
[1734551130733,2.3222,215.41,215.34,1.5944]
[1734551131128,3.42,215.47,215.36,2.3227]
[1734551131436,12.53241303,215.42,215.31,1.7315]
[1734551132036,2.3228,215.36,215.32,2.3231]
[1734551132229,12.53241303,215.42,215.31,1.7315]
[1734551132430,2.3228,215.36,215.31,4.0546]
[1734551132636,12.53241303,215.42,215.31,1.7315]
[1734551132838,12.53241303,215.39,215.2,53.06]
[1734551133134,2.3232,215.32,215.27,5.53432932]
[1734551133735,2.3232,215.32,215.27,7.85792932]
[1734551134031,12.53241303,215.36,215.22,3.3576]
[1734551134249,12.53241303,215.33,215.23,2.3241]
[1734551134432,12.53241303,215.33,215.22,3.3576]
[1734551134632,2.3239,215.25,215.22,1.7467]
[1734551134833,2.3239,215.25,215.18,15.95241303]
[1734551134834,12.53241303,215.33,215.18,12.53241303]
[1734551135033,12.53241303,215.33,215.2,5.62916776]
[1734551135229,12.53241303,215.3,215.16,3.42]
[1734551135630,2.3242,215.22,215.15,12.53241303]
[1734551136034,3.42,215.29,215.2,2.3244]
[1734551136636,3.42,215.29,215.18,5.50475701]
[1734551136931,2.3239,215.25,215.18,5.50475701]
[1734551137135,12.53241303,215.3,215.18,5.50475701]
[1734551137335,3.42,215.29,215.18,5.50475701]
[1734551137539,2.3241,215.23,215.18,5.50475701]
[1734551138036,20.08600447,215.28,215.15,5.5144068]
[1734551138341,20.08600447,215.28,215.15,7.8393068]
[1734551138532,20.08600447,215.28,215.15,5.5144068]
[1734551138732,2.3244,215.21,215.15,5.5144068]
[1734551139239,20.08600447,215.28,215.15,5.5144068]
[1734551139434,2.3244,215.2,215.15,5.5144068]
[1734551139942,2.3253,215.12,215.06,2.3259]
[1734551140138,1.6973,215.19,215.06,2.3259]
[1734551140438,20.08600447,215.16,214.98,5.1643]
[1734551140635,20.08600447,215.16,214.98,3.4431]
[1734551140843,20.08600447,215.16,215.02,5.64833289]
[1734551141139,2.9762,215.19,215.02,25.73433736]
[1734551141342,2.9762,215.19,215.03,3.42]
[1734551141535,2.3248,215.17,215.07,2.3257]
[1734551141735,1.6973,215.19,215.08,1.7233]
[1734551142137,2.325,215.15,215.1,2.3254]
[1734551142439,1.6973,215.19,215.08,1.7233]
[1734551142642,2.3248,215.17,215.11,2.3253]
[1734551142937,3.42,215.22,215.08,1.7233]
[1734551143238,20.08600447,215.24,215.09,1.7364]
[1734551143741,2.3245,215.19,215.14,2.325]
[1734551143937,20.08600447,215.24,215.14,2.325]
[1734551144145,20.08600447,215.24,215.09,1.7364]
[1734551144341,20.08600447,215.24,215.13,2.3252]
[1734551144342,2.3246,215.19,215.13,2.3252]
[1734551144742,20.08600447,215.24,215.09,1.7364]
[1734551144940,20.08600447,215.24,215.14,2.325]
[1734551145235,20.08600447,215.24,215.09,1.7364]
[1734551145441,5.0926,215.25,215.1,3.42]
[1734551145740,5.0926,215.25,215.11,20.08600447]
[1734551145943,3.9965,215.25,215.18,2.3245]
[1734551146142,1.6726,215.25,215.11,20.08600447]
[1734551146736,1.18318,215.26,215.11,20.08600447]
[1734551147043,1.18318,215.26,215.15,20.08600447]
[1734551147241,1.18318,215.26,215.25,2.3239]
[1734551147644,1.18318,215.26,215.21,3.42]
[1734551148238,1.18318,215.26,215.09,56.41567227]
[1734551148441,20.08600447,215.24,215.09,1.7364]
[1734551148637,1.7348,215.23,215.09,1.7364]
[1734551148848,1.7348,215.23,215.12,5.54689931]
[1734551149240,1.7348,215.23,215.14,2.3251]
[1734551149449,1.7348,215.23,215.12,5.54689931]
[1734551149744,2.3246,215.18,215.12,7.87209931]
[1734551150139,2.3246,215.18,215.09,1.7364]
[1734551150439,1.7348,215.23,215.12,2.3253]
[1734551150645,1.7348,215.23,215.11,5.48386002]
[1734551151045,2.3246,215.18,215.11,5.48386002]
[1734551151438,1.7348,215.23,215.09,1.7364]
[1734551151439,20.08600447,215.2,215.09,1.7364]
[1734551151639,20.08600447,215.16,214.99,3.42]
[1734551152037,20.08600447,215.16,215.06,5.65325774]
[1734551152847,23.50600447,215.2,215.06,5.65325774]
[1734551153240,20.08600447,215.16,214.97,5.1581]
[1734551153445,20.08600447,215.12,214.97,3.4333]
[1734551153749,20.08600447,215.08,214.97,3.4333]
[1734551154057,2.3262,215.04,214.98,5.4925016]
[1734551154547,5.0652,215.11,214.98,5.4925016]
[1734551154944,5.0652,215.11,214.9,25.23080447]
[1734551155146,20.08600447,215.08,214.91,3.4705]
[1734551155548,2.3263,215.03,214.92,2.3274]
[1734551155748,5.0652,215.11,214.95,5.70244756]
[1734551157146,20.08600447,215.08,214.93,2.3272]
[1734551157547,20.08600447,215.08,214.92,9.41279247]
[1734551158844,2.3262,215.04,214.97,2.3268]
[1734551159050,20.08600447,215.08,214.92,9.41279247]
[1734551159350,2.3264,215.02,214.94,2.3272]
[1734551159551,20.08600447,215.08,214.92,3.86]
[1734551159943,20.08600447,215.08,214.92,6.1874]
[1734551160146,20.08600447,215.08,214.92,3.86]
[1734551160555,5.0652,215.11,214.92,3.86]
[1734551160751,20.08600447,215.09,214.91,29.11320657]